bitfinex-derivatives/quotes_ETHF0:USTF0_20250620
["timestamp","ask_amount","ask_price","bid_price","bid_amount"]
[1750426762815,0.78353,2552.3,2552.2,2.11946]
[1750426763015,24.599,2552.4,2552.3,0.78353]
[1750426763218,24.6,2552.4,2552.3,2.11941]
[1750426763617,7.36948,2552.5,2552.3,2.11941]
[1750426763618,0.78348,2552.5,2552.3,2.11941]
[1750426763820,0.78345,2552.6,2552.4,0.78348]
[1750426764012,0.78347,2552.5,2552.3,2.1194]
[1750426764213,46.4635,2553.0,2552.3,1.3359]
[1750426764415,0.78339,2552.8,2552.4,3.2078]
[1750426764615,0.7834,2552.7,2552.5,2.05365]
[1750426764918,31.95736,2552.9,2552.6,0.78341]
[1750426765108,0.78338,2552.8,2552.6,0.78341]
[1750426765307,45.186,2553.0,2552.7,3.2078]
[1750426765720,51.771,2553.0,2552.9,0.78334]
[1750426765921,6.585,2553.3,2552.8,1.2702]
[1750426766224,31.163,2553.3,2553.2,0.78325]
[1750426766912,0.78327,2553.2,2553.0,3.9911]
[1750426767509,3.991,2553.4,2553.2,0.78325]
[1750426767710,7.3672,2553.4,2553.3,3.2078]
[1750426767906,31.15,2553.4,2553.3,3.99102]
[1750426768416,31.93319,2553.4,2553.3,3.2078]
[1750426769313,31.15,2553.4,2553.3,3.2078]
[1750426769523,31.93318,2553.4,2553.3,3.2078]
[1750426769820,0.78322,2553.3,2553.1,2.15847]
[1750426770120,31.15,2553.4,2553.1,1.3752]
[1750426770418,45.166,2553.9,2553.4,1.95793]
[1750426770614,51.748,2553.9,2553.8,3.99086]
[1750426770922,31.91903,2553.9,2553.8,3.2078]
[1750426771117,0.78315,2553.5,2553.4,8.2078]
[1750426771413,24.562,2553.8,2553.5,0.78313]
[1750426771618,0.7831,2553.7,2553.4,8.99096]
[1750426771813,0.78312,2553.6,2553.5,1.3198]
[1750426772017,0.78312,2553.6,2553.5,0.78315]
[1750426772212,0.78311,2553.7,2553.5,0.78315]
[1750426772409,0.78309,2553.7,2553.5,0.78313]
[1750426772612,0.78312,2553.6,2553.5,1.3198]
[1750426772814,0.78312,2553.6,2553.4,8.99096]
[1750426773120,24.545,2553.6,2553.4,8.2078]
[1750426773319,6.581,2553.7,2553.6,0.78312]
[1750426774320,7.36409,2553.7,2553.6,0.78312]
[1750426774520,0.78312,2553.6,2553.5,1.2649]
[1750426774716,0.78315,2553.5,2553.4,8.2078]
[1750426774916,24.528,2553.5,2553.4,8.99098]
[1750426775116,6.581,2553.7,2553.4,8.2078]
[1750426775321,6.581,2553.7,2553.6,0.78312]
[1750426775519,31.89609,2553.7,2553.5,0.78313]
[1750426775825,31.89611,2553.7,2553.5,0.78315]
[1750426776124,0.78308,2553.8,2553.6,0.7831]
[1750426776316,31.89209,2553.7,2553.5,1.3024]
[1750426776518,24.522,2553.7,2553.6,0.78311]
[1750426776724,25.30509,2553.7,2553.6,0.78311]
[1750426776917,24.522,2553.7,2553.6,0.78311]
[1750426777418,6.528,2553.8,2553.7,0.78309]
[1750426777620,24.514,2554.0,2553.9,0.783]
[1750426777921,24.514,2554.0,2553.7,3.2078]
[1750426778126,0.78304,2553.9,2553.8,0.78305]
[1750426778327,25.29701,2554.0,2553.9,0.78303]
[1750426778524,0.78303,2553.9,2553.8,1.3024]
[1750426778720,24.511,2553.9,2553.8,1.3024]
[1750426778931,0.883,2554.3,2553.8,1.3024]
[1750426779119,24.503,2554.3,2554.2,3.2078]
[1750426779320,25.28591,2554.3,2554.1,0.78295]
[1750426779528,25.28593,2554.3,2554.1,0.78295]
[1750426779730,0.78294,2554.2,2554.1,0.78295]
[1750426780027,0.783,2554.0,2553.9,3.2078]
[1750426780226,31.81,2554.0,2553.9,3.2078]
[1750426781228,0.78311,2553.7,2553.6,3.2078]
[1750426781419,3.33612,2554.3,2553.6,3.2078]
[1750426781728,1.95745,2554.1,2553.6,5.32841]
[1750426781927,1.95745,2554.1,2553.7,0.78308]
[1750426782123,0.78306,2553.9,2553.7,0.78308]
[1750426782330,24.508,2553.8,2553.7,0.78308]
[1750426782531,25.29106,2553.8,2553.7,0.78308]
[1750426782726,24.508,2553.8,2553.7,0.78308]
[1750426782928,25.29108,2553.8,2553.6,5.32841]
[1750426783122,0.78315,2553.5,2553.4,5.0]
[1750426783327,25.29115,2553.5,2553.4,5.0]
[1750426783831,31.27393756,2553.5,2553.4,5.0]
[1750426784130,0.78334,2552.9,2552.7,3.2078]
[1750426784424,25.30237,2552.8,2552.7,3.2078]
[1750426784828,24.519,2552.8,2552.7,3.9912]
[1750426785022,25.30237,2552.8,2552.7,3.2078]
[1750426785425,0.78342,2552.7,2552.4,5.24367]
[1750426785627,0.78347,2552.5,2552.3,0.78351]
[1750426785827,24.508,2552.4,2552.3,0.78352]
[1750426786026,24.508,2552.4,2552.3,5.78352]
[1750426786334,25.29149,2552.4,2552.3,6.3429]
[1750426786536,0.78344,2552.6,2552.3,5.0]
[1750426786835,31.82147,2552.5,2552.3,5.7835]
[1750426787029,0.78345,2552.6,2552.4,0.78349]
[1750426787230,31.81746,2552.5,2552.4,0.78349]
[1750426787429,31.81746,2552.5,2552.3,5.0]
[1750426787430,0.78349,2552.4,2552.3,5.78351]
[1750426787826,31.81848,2552.5,2552.3,5.78351]
[1750426788230,0.78349,2552.4,2552.3,5.0]
[1750426788631,1.78165801,2552.4,2552.3,5.0]
[1750426788833,1.78165546,2552.4,2552.3,5.0]
[1750426789030,1.78381906,2552.4,2552.3,5.0]
[1750426789238,1.78381906,2552.4,2552.3,5.06933781]
[1750426789626,1.7839188,2552.4,2552.3,5.06933781]
[1750426790631,0.78349,2552.4,2552.3,5.06933781]
[1750426791137,1.78405337,2552.4,2552.3,5.06933781]
[1750426791433,1.78405337,2552.4,2552.3,5.0]
[1750426792322,1.78405337,2552.4,2552.3,5.06933781]
[1750426792729,32.78805337,2552.4,2552.3,5.06933781]
[1750426794631,31.007,2552.4,2552.3,5.06933781]
[1750426794830,31.007,2552.4,2552.3,5.85283781]
[1750426795136,30.99,2552.4,2552.3,5.06933781]
[1750426795331,30.993,2552.4,2552.3,6.39783781]
[1750426795640,30.993,2552.4,2552.3,7.99525781]
[1750426795940,45.132,2552.7,2552.6,0.78343]
[1750426796240,76.122,2552.7,2552.6,0.78343]
[1750426796441,52.44342,2552.7,2552.6,0.78343]
[1750426796735,76.90442,2552.7,2552.5,3.99124]
[1750426796937,76.121,2552.7,2552.6,0.78343]
[1750426797331,45.132,2552.7,2552.6,2.10713]
[1750426797527,0.78329,2553.1,2553.0,0.78331]
[1750426797836,32.76620779,2553.1,2553.0,0.78331]
[1750426798138,8.31221779,2553.1,2553.0,0.78331]
[1750426798340,31.97991779,2553.1,2553.0,0.78331]
[1750426798542,55.02531173,2553.5,2553.2,0.78322]
[1750426798543,6.528,2553.3,2553.2,0.78322]
[1750426798745,30.982,2553.3,2553.2,3.99102]
[1750426798943,30.995,2553.3,2553.2,3.99102]
[1750426799636,24.465,2553.3,2553.2,3.99105]
[1750426800336,6.528,2553.4,2553.2,3.99105]
[1750426800337,4.0744,2554.0,2553.2,3.2078]
[1750426800528,1.00009199,2553.9,2553.3,3.28884]
[1750426800729,0.78296,2554.2,2553.8,3.2078]
[1750426800934,6.528,2554.3,2554.2,0.78294]
[1750426801137,0.78282,2554.6,2554.5,0.78285]
[1750426801438,24.47,2554.6,2554.5,3.99063]
[1750426802036,25.25282,2554.6,2554.5,3.2078]
[1750426802735,24.47,2554.6,2554.1,3.2078]
[1750426803037,0.7829,2554.4,2554.2,0.78294]
[1750426803233,24.457,2554.3,2554.2,2.11374]
[1750426803429,24.457,2554.3,2554.2,1.3308]
[1750426803634,24.457,2554.3,2554.1,3.2078]
[1750426803837,9.88831173,2554.2,2553.7,0.8818]
[1750426804038,0.78306,2553.8,2553.7,2.97399]
[1750426804232,24.464,2553.8,2553.7,2.1909]
[1750426804540,24.464,2553.8,2553.7,2.97399]
[1750426804939,25.24706,2553.8,2553.7,2.1909]
[1750426805136,25.24706,2553.8,2553.7,0.8818]
[1750426805330,24.464,2553.8,2553.5,3.2078]
[1750426805745,0.78312,2553.6,2553.5,3.2078]
[1750426805935,25.23712,2553.6,2553.5,3.2078]
[1750426806538,25.23712,2553.6,2553.5,3.99095]
[1750426806836,40.8,2554.1,2553.7,0.78307]
[1750426807032,40.8,2554.1,2553.9,0.78303]
[1750426807245,0.78303,2553.9,2553.8,3.2078]
[1750426807643,30.957,2553.9,2553.8,3.2078]
[1750426807844,31.74003,2553.9,2553.8,3.2078]
[1750426808042,31.74203,2553.9,2553.8,3.2078]
[1750426808239,30.959,2553.9,2553.8,3.2078]
[1750426808548,31.74203,2553.9,2553.8,3.2078]
[1750426809441,0.78298,2554.1,2553.9,0.78302]
[1750426809640,30.944,2554.0,2553.9,1.3717]
[1750426809849,30.942,2554.0,2553.9,2.15472]
[1750426810042,45.122,2554.2,2554.0,0.783]
[1750426810347,6.499,2554.0,2553.9,2.15471]
[1750426810548,45.122,2554.2,2554.1,0.78297]
[1750426810748,76.84195,2554.2,2554.0,1.60097]
[1750426811047,40.8,2554.7,2554.3,0.7829]
[1750426811347,30.937,2554.6,2554.4,3.99067]
[1750426811543,7.28084,2554.6,2554.4,3.99067]
[1750426811750,24.438,2554.5,2554.4,3.99066]
[1750426811945,24.461,2554.5,2554.4,3.99068]
[1750426812649,25.24385,2554.5,2554.4,3.2078]
[1750426812842,25.24385,2554.5,2554.4,3.99068]
[1750426813246,24.461,2554.5,2554.4,3.99068]
[1750426813550,30.955,2554.5,2554.4,3.99068]
[1750426813843,0.8928,2555.0,2554.4,3.2078]
[1750426814053,24.458,2555.1,2554.9,3.2078]
[1750426814242,24.458,2555.1,2555.0,0.78269]
[1750426814747,0.78258,2555.4,2555.0,1.2904]
[1750426814950,6.498,2555.2,2555.1,0.78266]
[1750426815336,0.78256,2555.5,2555.0,1.2904]
[1750426815537,30.956,2555.4,2555.2,0.7826]
[1750426815744,0.78257,2555.5,2555.3,0.78259]
[1750426815948,31.73858,2555.4,2555.2,3.2078]
[1750426816148,0.7826,2555.3,2555.2,3.2078]
[1750426816651,0.78265,2555.2,2555.0,7.07309]
[1750426816850,24.454,2555.1,2555.0,7.07309]
[1750426817047,0.78247,2555.8,2555.5,0.78252]
[1750426817347,24.512,2555.9,2555.5,3.99032]
[1750426817545,24.512,2555.8,2555.5,3.99032]
[1750426817843,24.507,2555.7,2555.5,3.2078]
[1750426818052,24.504,2555.7,2555.6,2.12118]
[1750426818847,25.28648,2555.7,2555.6,1.3387]
[1750426819041,2.80307,2556.3,2555.5,3.2078]
[1750426819042,0.8473,2556.3,2555.5,3.2078]
[1750426819345,24.497,2556.2,2555.8,3.2078]
[1750426819746,24.497,2556.2,2555.8,3.99025]
[1750426819946,0.8473,2556.3,2555.8,3.2078]
[1750426820249,31.0,2556.2,2556.0,0.78237]
[1750426820446,31.0,2556.2,2555.8,3.2078]
[1750426820447,1.95569,2556.4,2555.8,3.2078]
[1750426820649,1.9559,2556.1,2555.8,3.2078]
[1750426820850,0.78247,2555.8,2555.5,4.88813]
[1750426821050,24.526,2555.7,2555.5,4.88813]
[1750426821245,25.30848,2555.7,2555.5,4.88813]
[1750426821647,1.95565,2556.5,2555.5,9.1056]
[1750426821845,8.45165,2556.5,2556.0,3.2078]
[1750426822151,0.78234,2556.2,2556.0,3.99018]
[1750426822449,31.059,2556.4,2556.2,0.78232]
[1750426822645,31.054,2556.3,2556.1,1.3527]
[1750426822949,31.054,2556.5,2556.2,4.0381]
[1750426823151,31.054,2556.5,2556.4,0.78226]
[1750426823345,0.78218,2556.7,2556.5,0.78223]
[1750426823541,45.115,2556.8,2556.5,3.99003]
[1750426823542,6.495,2556.6,2556.5,3.99003]
[1750426823740,31.047,2556.6,2556.5,3.99003]
[1750426823941,45.89715,2556.8,2556.6,0.78218]
[1750426824148,5.46835053,2557.8,2556.8,1.95529]
[1750426824346,0.78195,2557.5,2557.3,0.78198]
[1750426824651,31.87397,2557.4,2557.2,0.78202]
[1750426825149,3.2078,2557.8,2557.1,3.2078]
[1750426825345,31.86589,2557.7,2557.4,0.78195]
[1750426825547,1.2751,2557.9,2557.4,0.78195]
[1750426825751,0.78191,2557.6,2557.4,0.78195]
[1750426825945,31.078,2557.5,2557.4,0.78195]
[1750426826146,31.078,2557.5,2557.4,3.2078]
[1750426826345,6.495,2557.8,2557.4,3.2078]
[1750426826544,0.78193,2557.5,2557.4,3.2078]
[1750426826749,0.78192,2557.6,2557.4,3.2078]
[1750426827552,0.78193,2557.5,2557.4,3.2078]
[1750426827747,0.841,2558.0,2557.4,14.2097591]
[1750426828049,0.78176,2558.1,2557.9,3.2078]
[1750426828255,24.605,2558.0,2557.9,3.2078]
[1750426828554,0.78187,2557.7,2557.6,3.2078]
[1750426828947,31.87787,2557.7,2557.6,3.2078]
[1750426829649,0.782,2557.3,2557.2,3.2078]
[1750426829849,31.88799,2557.3,2557.2,3.2078]
[1750426830842,1.95506,2557.2,2556.9,3.2078]
[1750426831146,0.78223,2556.5,2556.4,0.8981]
[1750426831353,25.47023,2556.5,2556.4,1.68037]
[1750426831548,25.47023,2556.5,2556.4,0.8981]
[1750426832046,25.47023,2556.5,2556.4,2.1725]
[1750426832250,0.78243,2555.9,2555.8,3.2078]
[1750426832453,0.78256,2555.5,2555.4,3.2078]
[1750426832654,31.97656,2555.5,2555.4,0.07826563]
[1750426833859,38.23606,2555.5,2555.4,5.63e-06]
[1750426834153,39.12326,2555.5,2555.4,5.63e-06]
[1750426834848,1.95653,2555.3,2554.3,3.2078]
[1750426835050,0.78277,2554.8,2554.4,0.86117627]
[1750426835253,0.78277,2554.8,2554.5,0.0782932]
[1750426835449,31.214,2554.7,2554.5,0.0782932]
[1750426835652,0.78282,2554.6,2554.5,0.0782932]
[1750426836353,5.78282,2554.6,2554.5,0.0782932]
[1750426836553,7.93472,2554.6,2554.5,0.0782932]
[1750426836946,7.93472,2554.6,2553.5,1.332]
[1750426836947,0.78308,2553.8,2553.5,1.332]
[1750426837260,31.228,2553.7,2553.6,0.0783208]
[1750426837451,31.223,2553.7,2553.6,0.0783208]
[1750426837656,6.664,2553.8,2553.7,0.78309]
[1750426837857,6.664,2553.8,2553.7,3.2078]
[1750426838061,31.391,2553.8,2553.7,3.99089]
[1750426839158,45.08,2554.2,2553.9,0.78301]
[1750426839351,51.745,2554.2,2554.1,0.78297]
[1750426839557,76.467,2554.2,2554.1,0.78297]
[1750426839856,76.467,2554.2,2554.1,1.2857]
[1750426840058,76.467,2554.2,2553.9,0.78302]
[1750426840259,76.467,2554.2,2554.0,0.78299]
[1750426840457,79.6748,2554.2,2553.8,0.78305]
[1750426840648,3.2078,2553.9,2553.3,0.8554]
[1750426840854,3.2078,2553.9,2552.4,11.0019591]
[1750426840855,3.2078,2553.6,2552.7,3.99118]
[1750426841158,24.749,2553.5,2552.7,3.2078]
[1750426841359,7.4482,2553.4,2552.7,3.2078]
[1750426841561,0.78323,2553.3,2552.8,3.2078]
[1750426841762,24.753,2553.2,2552.8,3.2078]
[1750426842263,24.747,2553.5,2553.1,3.2078]
[1750426842562,24.747,2553.5,2552.8,3.2078]
[1750426842754,0.78336,2552.9,2552.5,10.7611]
[1750426842959,0.78336,2552.9,2552.8,5.0]
[1750426843455,24.754,2553.0,2552.8,5.0]
[1750426843859,7.4503,2553.1,2552.9,1.2958]
[1750426844067,0.78334,2552.9,2552.8,5.0]
[1750426844565,2.07754,2552.9,2552.8,5.0]
[1750426844954,32.21234,2552.9,2552.8,5.0]
[1750426845464,0.78334,2552.9,2552.8,5.0]
[1750426845667,32.21234,2552.9,2552.8,5.0]
[1750426846258,1.2942,2553.3,2552.8,5.0]
[1750426846466,24.757,2553.3,2552.8,5.0]
[1750426846670,31.427,2553.5,2553.0,3.2078]
[1750426846967,0.78325,2553.2,2553.1,1.2842]
[1750426847176,25.54225,2553.2,2553.1,1.2842]
[1750426847678,25.54225,2553.2,2552.8,5.0]
[1750426847679,0.78334,2552.9,2552.8,5.0]
[1750426847873,35.41414,2552.9,2552.8,5.0]
[1750426848268,41.74874,2552.9,2552.8,4.09686]
[1750426848479,41.74874,2552.9,2552.8,0.57262]
[1750426848678,0.78372,2551.7,2551.5,4.492]
[1750426848874,31.451,2552.0,2551.5,4.492]
[1750426849272,0.78374,2551.6,2551.5,4.492]
[1750426850482,0.78386,2551.2,2551.1,0.06933781]
[1750426850974,7.45386,2551.2,2551.1,0.06933781]
[1750426851173,18.4558191,2551.2,2551.1,7.81e-06]
[1750426851370,18.4558191,2551.2,2550.3,0.8577]
[1750426851371,0.78406,2550.6,2550.3,4.0655]
[1750426851566,24.817,2550.7,2550.4,1.2593]
[1750426851877,0.78407,2550.5,2550.4,1.2593]
[1750426852180,0.78407,2550.5,2550.4,1.33771907]
[1750426852984,0.78407,2550.5,2550.4,0.07841907]
[1750426853278,0.78407,2550.5,2550.4,9.07e-06]
[1750426854271,32.26707,2550.5,2550.4,9.07e-06]
[1750426854672,0.78407,2550.5,2550.4,9.07e-06]
[1750426854873,32.27007,2550.5,2550.4,9.07e-06]
[1750426855077,0.78407,2550.5,2550.4,9.07e-06]
[1750426855580,0.78406,2550.6,2550.4,9.07e-06]
[1750426855771,9.8798,2550.7,2550.4,1.33320907]
[1750426855974,8.63203,2550.8,2550.4,1.33320907]
[1750426856279,0.78408,2550.5,2550.4,9.07e-06]
[1750426856472,25.59108,2550.5,2550.4,9.07e-06]
[1750426856672,25.59108,2550.5,2550.4,5.00000907]
[1750426856869,32.28708,2550.5,2550.4,5.00000907]
[1750426859180,32.26508,2550.5,2550.4,5.00000907]
[1750426860283,32.26908,2550.5,2550.4,5.00000907]
[1750426860480,3.2078,2550.7,2550.4,5.0]
[1750426860684,6.675,2550.7,2550.5,1.3435]
[1750426860983,34.7058,2551.3,2550.5,1.3435]
[1750426861176,31.498,2551.3,2550.6,0.8353]
[1750426861485,5.27796,2552.0,2550.6,0.8353]
[1750426861486,24.834,2552.0,2551.1,3.2078]
[1750426861685,1.95917,2551.9,2551.2,1.367]
[1750426861984,0.78383,2551.3,2551.2,1.367]
[1750426862187,5.16708,2551.7,2551.2,1.367]
[1750426862380,0.78395,2551.0,2550.8,3.2078]
[1750426862588,24.859,2551.2,2550.9,1.367]
[1750426862778,0.78392,2551.0,2550.9,1.367]
[1750426862981,0.78391,2551.1,2550.9,1.367]
[1750426863273,31.545,2551.3,2550.9,2.15094]
[1750426863472,0.78392,2551.0,2550.9,1.367]
[1750426863683,0.78402,2550.7,2550.6,0.8353]
[1750426864188,0.78402,2550.7,2550.6,6.61935]
[1750426864589,3.2078,2551.1,2550.6,5.8353]
[1750426864784,0.78402,2550.8,2550.7,0.78401]
[1750426864979,0.78402,2550.8,2550.6,0.8353]
[1750426864980,0.78402,2550.7,2550.6,1.61933]
[1750426865186,0.78402,2550.7,2550.6,0.8353]
[1750426865389,1.95996,2550.9,2550.4,5.0]
[1750426865578,0.78408,2550.5,2550.4,5.0]
[1750426866280,7.45908,2550.5,2550.4,5.0]
[1750426867285,35.53588,2550.5,2550.4,5.0]
[1750426870580,51.5378391,2550.5,2550.4,4.1688]
[1750426870882,0.78435,2549.6,2549.5,0.9043]
[1750426871492,0.78434,2549.7,2549.5,0.9043]
[1750426871691,3.99215,2549.6,2549.5,0.9043]
[1750426871880,31.572,2549.9,2549.5,0.9043]
[1750426872085,0.78423,2550.0,2549.5,0.9043]
[1750426872286,34.7758,2550.2,2549.7,3.2078]
[1750426872485,0.78425,2550.0,2549.7,3.2078]
[1750426872792,0.78422,2550.1,2549.7,3.2078]
[1750426872989,34.7758,2550.2,2549.7,3.2078]
[1750426873193,0.78425,2550.0,2549.7,3.2078]
[1750426873388,36.73626,2550.2,2549.7,3.2078]
[1750426873588,0.78429,2549.8,2549.7,3.2078]
[1750426873894,1.96059,2550.0,2549.7,5.0]
[1750426874089,0.78429,2549.8,2549.7,5.0]
[1750426874291,32.36329,2549.8,2549.7,5.0]
[1750426874891,33.67359,2549.8,2549.7,5.0]
[1750426875896,5.1682,2550.3,2549.7,5.0]
[1750426876101,0.78429,2549.8,2549.7,5.0]
[1750426876596,7.51529,2549.8,2549.7,5.0]
[1750426876990,3.2078,2550.0,2549.7,5.0]
[1750426877190,26.82152,2550.1,2549.7,5.0]
[1750426877391,1.00739591,2550.0,2549.7,5.0]
[1750426877588,0.78429,2549.8,2549.7,5.8513]
[1750426878196,3.2078,2550.3,2549.7,10.8513]
[1750426878495,0.78425,2550.0,2549.7,5.8513]
[1750426879097,0.78423,2550.1,2549.7,5.8513]
[1750426879288,36.76016,2550.3,2549.7,5.8513]
[1750426879485,0.78429,2549.8,2549.7,5.8513]
[1750426879795,1.79444944,2549.8,2549.7,5.06933781]
[1750426880495,3.16754944,2549.8,2549.7,5.06933781]
[1750426881095,3.98954944,2549.8,2549.7,5.06933781]
[1750426881288,11.32622125,2549.8,2549.7,3.40123781]
[1750426881796,8.98954944,2549.8,2549.7,3.40123781]
[1750426882387,6.32445232,2549.8,2549.7,3.40123781]
[1750426883001,35.72235232,2549.8,2549.7,3.40123781]
[1750426883203,33.38744944,2549.8,2549.7,3.40123781]
[1750426884490,45.74290854,2549.8,2549.7,3.40123781]
[1750426884694,48.07781142,2549.8,2549.7,3.40123781]
[1750426884996,48.07781142,2549.8,2548.7,0.8218]
[1750426884997,0.7846,2548.8,2548.7,0.8218]
[1750426885394,0.78472,2548.4,2548.3,6.732]
[1750426885595,0.78474,2548.4,2548.2,3.2078]
[1750426885795,0.78471,2548.5,2548.2,8.2078]
[1750426886096,26.82045,2548.9,2548.2,3.2078]
[1750426886303,0.78465,2548.7,2548.3,1.299]
[1750426886602,24.859,2548.9,2548.3,1.299]
[1750426886791,0.78466,2548.7,2548.3,1.299]
[1750426886996,0.78466,2548.6,2548.5,3.2078]
[1750426887697,0.78472,2548.4,2548.3,1.299]
[1750426888206,0.78472,2548.4,2548.3,6.299]
[1750426888899,0.78472,2548.4,2548.3,5.0]
[1750426889100,26.82048,2548.9,2548.3,6.2948]
[1750426889294,0.78469,2548.6,2548.3,1.2948]
[1750426889492,0.78472,2548.5,2548.3,1.2948]
[1750426889691,0.78475,2548.3,2548.2,8.2078]
[1750426889910,0.78475,2548.3,2548.2,5.0]
[1750426892697,13.1323091,2548.3,2548.2,5.0]
[1750426892998,19.14012108,2548.3,2548.2,2.94629]
[1750426893202,19.14012108,2548.3,2548.2,2.00697]
[1750426893504,8.13816198,2548.3,2548.2,0.8412]
[1750426893894,8.13816198,2548.3,2548.2,0.05594]
[1750426894092,33.34756198,2548.3,2548.2,0.05594]
[1750426894300,34.69316198,2548.3,2548.2,0.05594]
[1750426894606,1.00781198,2548.3,2548.2,0.05594]
[1750426894798,79.9708,2548.5,2548.2,0.05594]
[1750426894998,0.78475,2548.3,2548.2,0.12527781]
[1750426895703,48.4068,2548.5,2548.4,0.78472]
[1750426895908,31.563,2548.6,2548.4,0.78472]
[1750426896200,6.735,2548.8,2548.3,1.96189]
[1750426896399,0.78466,2548.7,2548.3,3.29879]
[1750426896594,0.78467,2548.6,2548.3,1.3369]
[1750426896901,0.78465,2548.7,2548.3,1.3369]
[1750426897103,0.78462,2548.8,2548.3,1.3369]
[1750426897406,0.78451,2549.1,2548.6,3.2078]
[1750426897599,0.78448,2549.2,2548.7,12.3388591]
[1750426897794,0.78448,2549.2,2549.0,3.2078]
[1750426897998,0.78448,2549.2,2549.1,1.315]
[1750426898302,0.78447,2549.3,2549.1,1.315]
[1750426898504,0.78448,2549.2,2549.1,1.315]
[1750426900106,0.78457,2549.0,2548.8,3.2078]
[1750426900406,0.78457,2549.0,2548.9,2.09957]
[1750426900603,0.78443,2549.4,2549.3,0.78442]
[1750426900907,0.78439,2549.6,2549.5,0.78437]
[1750426901106,0.78439,2549.5,2549.4,2.15819]
[1750426901504,0.78438,2549.6,2549.4,1.3738]
[1750426901704,6.705,2549.8,2549.4,1.3738]
[1750426901705,0.78439,2549.5,2549.4,1.3738]
[1750426902099,0.78439,2549.5,2549.4,6.3738]
[1750426905703,0.78439,2549.5,2549.4,5.0]
[1750426907215,3.2078,2549.7,2549.4,5.0]
[1750426907511,0.78439,2549.5,2549.4,5.0]
[1750426908115,7.48839,2549.5,2549.4,5.0]
[1750426908313,3.2078,2549.7,2549.4,5.0]
[1750426908515,0.78439,2549.5,2549.4,5.0]
[1750426910717,0.78436,2549.6,2549.5,1.3264]
[1750426911016,0.78439,2549.5,2549.4,5.06933781]
[1750426911710,0.78439,2549.5,2549.4,6.39573781]
[1750426912112,0.78439,2549.5,2549.4,5.06933781]
[1750426912813,3.2078,2549.7,2549.4,5.06933781]
[1750426913013,9.9118,2549.7,2549.4,6.32263781]
[1750426913220,0.7843,2549.8,2549.4,6.32263781]
[1750426913416,0.78435,2549.7,2549.4,6.32263781]
[1750426913617,0.78439,2549.6,2549.4,6.32263781]
[1750426914222,0.78439,2549.5,2549.4,6.32263781]
[1750426914421,0.78439,2549.5,2549.4,5.06933781]
[1750426914819,0.78439,2549.6,2549.4,6.32263781]
[1750426915118,6.704,2550.0,2549.4,6.32263781]
[1750426915320,0.78431,2549.8,2549.4,6.32263781]
[1750426916318,0.78439,2549.6,2549.4,6.32263781]
[1750426916921,0.78432,2549.8,2549.4,6.32263781]
[1750426917121,0.78436,2549.7,2549.4,6.32263781]
[1750426917622,50.37326,2550.2,2549.4,6.32263781]
[1750426917818,0.78414,2550.4,2550.1,3.2078]
[1750426918121,0.78414,2550.3,2550.2,1.3437]
[1750426918322,0.78417,2550.2,2550.1,3.2078]
[1750426918515,0.7842,2550.1,2550.0,0.8219]
[1750426918915,0.78429,2549.8,2549.7,3.2078]
[1750426919118,0.78436,2549.7,2549.5,2.2328]
[1750426919319,0.78436,2549.6,2549.5,2.2328]
[1750426919822,3.27484,2550.1,2549.5,2.2328]
[1750426920021,0.78433,2549.8,2549.7,3.2078]
[1750426920722,0.78433,2549.8,2549.7,8.2078]
[1750426921025,0.78429,2549.9,2549.7,8.2078]
[1750426921224,0.78429,2549.8,2549.7,8.2078]
[1750426921724,3.99209,2549.8,2549.7,5.0]
[1750426922118,5.26679,2549.8,2549.7,5.0]
[1750426923424,34.95379,2549.8,2549.7,1.4041]
[1750426923725,0.78439,2549.5,2549.4,7.81e-06]
[1750426923913,21.6971491,2549.5,2549.4,7.81e-06]
[1750426924118,19.9941491,2549.5,2549.4,7.81e-06]
[1750426924326,10.69519,2549.5,2549.4,7.81e-06]
[1750426924527,14.9108,2549.5,2548.6,3.2078]
[1750426924714,0.78465,2548.7,2548.6,3.2078]
[1750426925018,0.78461,2548.8,2548.6,3.2078]
[1750426925419,0.78463,2548.7,2548.6,3.2078]
[1750426926015,3.2078,2549.2,2548.6,3.2078]
[1750426926221,3.2078,2549.5,2548.7,1.268]
[1750426926420,5.16833,2550.1,2549.7,0.06933781]
[1750426926624,3.2078,2550.1,2549.7,0.06933781]
[1750426926822,0.78424,2550.0,2549.8,1.268]
[1750426927017,0.78426,2549.9,2549.8,1.268]
[1750426927624,0.78426,2549.9,2549.8,6.268]
[1750426928829,0.78426,2549.9,2549.8,5.0]
[1750426930127,0.78426,2549.9,2549.8,6.3214]
[1750426930519,0.78426,2549.9,2549.8,5.0]
[1750426931732,5.78426,2549.9,2549.8,5.0]
[1750426931922,7.05076,2549.9,2549.8,5.0]
[1750426932118,37.12826,2549.9,2549.8,5.0]
[1750426932322,32.12826,2549.9,2549.8,5.0]
[1750426932519,7.42426,2549.9,2549.8,5.0]
[1750426932723,6.64,2549.9,2549.8,5.0]
[1750426932929,6.64,2549.9,2549.8,6.2719]
[1750426933326,7.42426,2549.9,2549.8,6.2719]
[1750426933631,6.64,2549.9,2549.8,5.0]